[Event "Early-Titled-Tuesday-Blitz-July-09-2024"]
[Site "Chess.com"]
[Date "2024.07.09"]
[Round "7"]
[White "BardArtem"]
[Black "ozates"]
[Result "1-0"]
[WhiteElo "2824"]
[BlackElo "2619"]
[TimeControl "180+1"]
[EndTime "9:20:35 PDT"]
[Termination "BardArtem won by resignation"]

1. e4 {[%clk 0:03:00.9]} 1... c5 {[%clk 0:02:56.6]} 2. Nf3 {[%clk 0:02:59.5]}
2... Nc6 {[%clk 0:02:57.2]} 3. Nc3 {[%clk 0:02:59.3]} 3... Nf6 {[%clk
0:02:55.3]} 4. Bb5 {[%clk 0:02:58.5]} 4... Qc7 {[%clk 0:02:54.8]} 5. O-O {[%clk
0:02:58.5]} 5... Nd4 {[%clk 0:02:53]} 6. Re1 {[%clk 0:02:58.5]} 6... Ng4 {[%clk
0:02:50.8]} 7. e5 {[%clk 0:02:53.2]} 7... Nxf3+ {[%clk 0:02:39.3]} 8. Qxf3
{[%clk 0:02:54.1]} 8... Nxe5 {[%clk 0:02:39.6]} 9. Qg3 {[%clk 0:02:53.4]} 9...
f6 {[%clk 0:02:37.8]} 10. Nd5 {[%clk 0:02:33.6]} 10... Qd6 {[%clk 0:02:32.7]}
11. Ne3 {[%clk 0:02:33.6]} 11... e6 {[%clk 0:02:23.2]} 12. b3 {[%clk 0:02:26.6]}
12... a6 {[%clk 0:02:20.9]} 13. Bf1 {[%clk 0:02:24.7]} 13... Nf7 {[%clk
0:02:16]} 14. Qh4 {[%clk 0:02:05.6]} 14... Qd4 {[%clk 0:02:13]} 15. Qxd4 {[%clk
0:02:00.1]} 15... cxd4 {[%clk 0:02:13.9]} 16. Nc4 {[%clk 0:02:01]} 16... b5
{[%clk 0:02:11.6]} 17. Nb6 {[%clk 0:02:00.5]} 17... Rb8 {[%clk 0:02:12.1]} 18.
Nxc8 {[%clk 0:02:01.3]} 18... Rxc8 {[%clk 0:02:13]} 19. a4 {[%clk 0:02:00.6]}
19... b4 {[%clk 0:02:09]} 20. Bxa6 {[%clk 0:01:59.6]} 20... Rxc2 {[%clk
0:02:08.7]} 21. Bc4 {[%clk 0:01:59.7]} 21... Ne5 {[%clk 0:02:05.8]} 22. Bb5
{[%clk 0:01:30.1]} 22... Bc5 {[%clk 0:01:39]} 23. a5 {[%clk 0:01:15.9]} 23...
Ke7 {[%clk 0:01:35.5]} 24. a6 {[%clk 0:01:14.5]} 24... Ra8 {[%clk 0:01:35.1]}
25. Rxe5 {[%clk 0:00:45.5]} 25... fxe5 {[%clk 0:01:32.6]} 26. Bd3 {[%clk
0:00:46.2]} 26... Rxc1+ {[%clk 0:01:21.9]} 27. Rxc1 {[%clk 0:00:47.1]} 27... Bb6
{[%clk 0:01:12.7]} 28. f3 {[%clk 0:00:39.2]} 28... Kd8 {[%clk 0:01:00]} 29. Kf1
{[%clk 0:00:37.5]} 29... g6 {[%clk 0:00:59.6]} 30. Ke2 {[%clk 0:00:34.2]} 30...
Rc8 {[%clk 0:00:54.1]} 31. Rh1 {[%clk 0:00:31.4]} 31... d5 {[%clk 0:00:42.6]}
32. h4 {[%clk 0:00:29.5]} 32... Rc7 {[%clk 0:00:35.6]} 33. h5 {[%clk 0:00:27.1]}
33... g5 {[%clk 0:00:35.1]} 34. h6 {[%clk 0:00:17]} 34... Bc5 {[%clk 0:00:35.4]}
35. Rc1 {[%clk 0:00:09.3]} 35... Kc8 {[%clk 0:00:30.8]} 36. Rxc5 {[%clk
0:00:02.2]} 36... Rxc5 {[%clk 0:00:27.9]} 37. Bxh7 {[%clk 0:00:03.1]} 37... Rc7
{[%clk 0:00:26.8]} 38. Bg8 {[%clk 0:00:02.5]} 38... d3+ {[%clk 0:00:16.7]} 39.
Kxd3 {[%clk 0:00:02.2]} 39... Rc1 {[%clk 0:00:14]} 40. h7 {[%clk 0:00:02.2]}
40... Rh1 {[%clk 0:00:13.6]} 41. Bxe6+ {[%clk 0:00:02.6]} 41... Kc7 {[%clk
0:00:13.2]} 42. Bh3 {[%clk 0:00:03.5]} 42... e4+ {[%clk 0:00:10.7]} 43. fxe4
{[%clk 0:00:03.7]} 43... g4 {[%clk 0:00:10]} 44. h8=Q {[%clk 0:00:03.5]} 44...
gxh3 {[%clk 0:00:10.7]} 45. Qe5+ {[%clk 0:00:03.5]} 45... Kb6 {[%clk 0:00:11.4]}
46. Qd6+ {[%clk 0:00:03.8]} 46... Kb5 {[%clk 0:00:11.2]} 47. Qxd5+ {[%clk
0:00:03.1]} 47... Kxa6 {[%clk 0:00:11.7]} 48. Qc6+ {[%clk 0:00:03.5]} 48... Ka5
{[%clk 0:00:11.9]} 49. Qd5+ {[%clk 0:00:02.9]} 49... Kb6 {[%clk 0:00:12.8]} 50.
gxh3 {[%clk 0:00:03.7]} 50... Rxh3+ {[%clk 0:00:13]} 51. Kc4 {[%clk 0:00:03.8]}
51... Rh6 {[%clk 0:00:13.7]} 52. Qb5+ {[%clk 0:00:03.6]} 52... Ka7 {[%clk
0:00:13.4]} 53. Qxb4 {[%clk 0:00:04.1]} 1-0

[Event "Early-Titled-Tuesday-Blitz-July-09-2024"]
[Site "Chess.com"]
[Date "2024.07.09"]
[Round "7"]
[White "FormerProdigy"]
[Black "jumpingknight20"]
[Result "0-1"]
[WhiteElo "2964"]
[BlackElo "2802"]
[TimeControl "180+1"]
[EndTime "9:20:36 PDT"]
[Termination "jumpingknight20 won by checkmate"]

1. Nf3 {[%clk 0:03:00.9]} 1... Nf6 {[%clk 0:03:00]} 2. b3 {[%clk 0:03:00.8]}
2... d5 {[%clk 0:02:58.5]} 3. Bb2 {[%clk 0:03:00.4]} 3... c5 {[%clk 0:02:58.9]}
4. e3 {[%clk 0:03:00.6]} 4... e6 {[%clk 0:02:59.2]} 5. Bb5+ {[%clk 0:02:56.3]}
5... Bd7 {[%clk 0:02:49.9]} 6. a4 {[%clk 0:02:56.3]} 6... Bd6 {[%clk 0:02:48.5]}
7. O-O {[%clk 0:02:47.7]} 7... a6 {[%clk 0:02:40.1]} 8. Bxd7+ {[%clk 0:02:44.9]}
8... Nbxd7 {[%clk 0:02:41]} 9. d3 {[%clk 0:02:34.3]} 9... Qc7 {[%clk 0:02:29.5]}
10. Nbd2 {[%clk 0:02:26.7]} 10... O-O {[%clk 0:02:29]} 11. a5 {[%clk 0:02:15.7]}
11... Rad8 {[%clk 0:02:23.3]} 12. Ra4 {[%clk 0:02:11.3]} 12... Ne5 {[%clk
0:02:21.8]} 13. Qa1 {[%clk 0:02:08.7]} 13... Nfd7 {[%clk 0:02:15.5]} 14. h3
{[%clk 0:02:00.3]} 14... f6 {[%clk 0:02:08.2]} 15. e4 {[%clk 0:01:49.4]} 15...
Nc6 {[%clk 0:02:02.6]} 16. Re1 {[%clk 0:01:46.8]} 16... Rde8 {[%clk 0:01:58.9]}
17. Nf1 {[%clk 0:01:43.7]} 17... Nde5 {[%clk 0:01:43.5]} 18. Nxe5 {[%clk
0:01:39.5]} 18... Bxe5 {[%clk 0:01:40.4]} 19. Ne3 {[%clk 0:01:26.6]} 19... Bxb2
{[%clk 0:01:13]} 20. Qxb2 {[%clk 0:01:27.5]} 20... dxe4 {[%clk 0:01:13.5]} 21.
Rxe4 {[%clk 0:01:28.4]} 21... Nxa5 {[%clk 0:01:08.1]} 22. Qc3 {[%clk 0:01:28.5]}
22... b6 {[%clk 0:00:47.5]} 23. b4 {[%clk 0:01:28.1]} 23... Nb7 {[%clk
0:00:46.4]} 24. Nd5 {[%clk 0:01:15.2]} 24... Qd8 {[%clk 0:00:37.7]} 25. Nf4
{[%clk 0:01:15]} 25... e5 {[%clk 0:00:36.3]} 26. Qb3+ {[%clk 0:01:08]} 26... Rf7
{[%clk 0:00:33.3]} 27. Nd5 {[%clk 0:00:54.6]} 27... Nd6 {[%clk 0:00:31.6]} 28.
R4e2 {[%clk 0:00:46.6]} 28... cxb4 {[%clk 0:00:26.4]} 29. Qxb4 {[%clk
0:00:47.5]} 29... Nf5 {[%clk 0:00:23.2]} 30. c4 {[%clk 0:00:47.5]} 30... b5
{[%clk 0:00:19.8]} 31. Ra2 {[%clk 0:00:44.2]} 31... Nd4 {[%clk 0:00:20.1]} 32.
Rb1 {[%clk 0:00:32.4]} 32... Re6 {[%clk 0:00:14.3]} 33. Kh1 {[%clk 0:00:27.4]}
33... h6 {[%clk 0:00:14.2]} 34. Qb2 {[%clk 0:00:18.3]} 34... Rb7 {[%clk
0:00:10.1]} 35. Rba1 {[%clk 0:00:17.1]} 35... Qd7 {[%clk 0:00:09.2]} 36. Rxa6
{[%clk 0:00:11.9]} 36... bxc4 {[%clk 0:00:08]} 37. Rb6 {[%clk 0:00:03.3]} 37...
Rexb6 {[%clk 0:00:06.3]} 38. Nxb6 {[%clk 0:00:04.2]} 38... Qc6 {[%clk
0:00:06.7]} 39. Rb1 {[%clk 0:00:02]} 39... c3 {[%clk 0:00:05.9]} 40. Qa2+ {[%clk
0:00:02.1]} 40... Kh7 {[%clk 0:00:06.2]} 41. Nc4 {[%clk 0:00:01.8]} 41... Rxb1+
{[%clk 0:00:06.4]} 42. Qxb1 {[%clk 0:00:02.7]} 42... c2 {[%clk 0:00:07.3]} 43.
Qc1 {[%clk 0:00:02.6]} 43... Qb5 {[%clk 0:00:07.2]} 44. Kh2 {[%clk 0:00:03]}
44... Qb1 {[%clk 0:00:07.2]} 45. Qe3 {[%clk 0:00:03.2]} 45... c1=Q {[%clk
0:00:07.5]} 46. Qe4+ {[%clk 0:00:03.8]} 46... f5 {[%clk 0:00:07.1]} 47. Qxe5
{[%clk 0:00:04.2]} 47... Nf3+ {[%clk 0:00:06.3]} 48. gxf3 {[%clk 0:00:04]} 48...
Qg1# {[%clk 0:00:06.2]} 0-1

[Event "Early-Titled-Tuesday-Blitz-July-09-2024"]
[Site "Chess.com"]
[Date "2024.07.09"]
[Round "7"]
[White "Boundless_Strike"]
[Black "AryanTari"]
[Result "1-0"]
[WhiteElo "2807"]
[BlackElo "2977"]
[TimeControl "180+1"]
[EndTime "9:20:37 PDT"]
[Termination "Boundless_Strike won by resignation"]

1. d4 {[%clk 0:03:00.9]} 1... d5 {[%clk 0:02:53.5]} 2. e4 {[%clk 0:03:00.5]}
2... dxe4 {[%clk 0:02:52.9]} 3. Nc3 {[%clk 0:03:01]} 3... Nf6 {[%clk 0:02:52.3]}
4. f3 {[%clk 0:03:01.4]} 4... exf3 {[%clk 0:02:49.3]} 5. Nxf3 {[%clk 0:03:01.9]}
5... g6 {[%clk 0:02:49.7]} 6. Bc4 {[%clk 0:02:59.8]} 6... Bg7 {[%clk 0:02:50]}
7. O-O {[%clk 0:03:00.5]} 7... O-O {[%clk 0:02:49.9]} 8. Qe1 {[%clk 0:03:01.2]}
8... c5 {[%clk 0:02:37.5]} 9. dxc5 {[%clk 0:03:00.8]} 9... Qc7 {[%clk 0:02:34]}
10. Be3 {[%clk 0:03:00.6]} 10... Bg4 {[%clk 0:01:46.8]} 11. Ng5 {[%clk
0:02:45.6]} 11... Nbd7 {[%clk 0:01:41.1]} 12. Qh4 {[%clk 0:02:35.5]} 12... Bh5
{[%clk 0:01:31]} 13. b4 {[%clk 0:01:59.6]} 13... Ne5 {[%clk 0:01:30.2]} 14. Bb3
{[%clk 0:01:55.3]} 14... h6 {[%clk 0:01:28.6]} 15. Nge4 {[%clk 0:01:35.4]} 15...
Neg4 {[%clk 0:01:16.6]} 16. Bf4 {[%clk 0:01:28.6]} 16... g5 {[%clk 0:01:05.9]}
17. Bxc7 {[%clk 0:00:37.6]} 17... gxh4 {[%clk 0:01:06]} 18. Rae1 {[%clk
0:00:38.2]} 18... Nxe4 {[%clk 0:00:47.5]} 19. Nxe4 {[%clk 0:00:36.7]} 19... Bg6
{[%clk 0:00:47.2]} 20. h3 {[%clk 0:00:28]} 20... Bd4+ {[%clk 0:00:47.2]} 21. Kh1
{[%clk 0:00:27.6]} 21... Ne3 {[%clk 0:00:44.7]} 22. Rf4 {[%clk 0:00:10.2]} 22...
Rac8 {[%clk 0:00:45.3]} 23. c3 {[%clk 0:00:10.1]} 23... Bg7 {[%clk 0:00:33.4]}
24. Rxe3 {[%clk 0:00:06.5]} 24... Rxc7 {[%clk 0:00:34]} 25. Rxh4 {[%clk
0:00:06.8]} 25... h5 {[%clk 0:00:32.5]} 26. Re1 {[%clk 0:00:05.9]} 26... Be5
{[%clk 0:00:23.8]} 27. Re2 {[%clk 0:00:04.8]} 27... Kg7 {[%clk 0:00:23.2]} 28.
Nf2 {[%clk 0:00:02.9]} 28... Bg3 {[%clk 0:00:21.7]} 29. Rc4 {[%clk 0:00:03.1]}
29... Bd3 {[%clk 0:00:14.4]} 30. Nxd3 {[%clk 0:00:03]} 30... Rd7 {[%clk
0:00:15.1]} 31. Rd4 {[%clk 0:00:03.3]} 31... Rfd8 {[%clk 0:00:15.2]} 32. Ree4
{[%clk 0:00:03.4]} 32... f5 {[%clk 0:00:15]} 33. Rxd7 {[%clk 0:00:02.9]} 33...
Rxd7 {[%clk 0:00:15.9]} 34. Rd4 {[%clk 0:00:03.6]} 34... Rc7 {[%clk 0:00:16.6]}
35. Kg1 {[%clk 0:00:04]} 35... e5 {[%clk 0:00:16.8]} 36. Rd5 {[%clk 0:00:04.6]}
36... Kf6 {[%clk 0:00:16.8]} 37. Kf1 {[%clk 0:00:04.8]} 37... h4 {[%clk
0:00:16.4]} 38. Rd6+ {[%clk 0:00:05]} 38... Kg5 {[%clk 0:00:16.6]} 39. Re6
{[%clk 0:00:05.6]} 39... e4 {[%clk 0:00:16.8]} 40. Ne5 {[%clk 0:00:05.6]} 40...
Rg7 {[%clk 0:00:16.8]} 41. Nc4 {[%clk 0:00:05.7]} 41... Kf4 {[%clk 0:00:16.6]}
42. Nd6 {[%clk 0:00:05.2]} 42... Rg5 {[%clk 0:00:10.2]} 43. Bc2 {[%clk 0:00:05]}
43... Ke3 {[%clk 0:00:10.3]} 44. b5 {[%clk 0:00:04.1]} 44... Kd2 {[%clk
0:00:09.1]} 45. Bxe4 {[%clk 0:00:04.6]} 45... f4 {[%clk 0:00:02]} 46. Bf3 {[%clk
0:00:03.7]} 46... Rxc5 {[%clk 0:00:02.4]} 47. Ne4+ {[%clk 0:00:04.2]} 1-0

[Event "Early-Titled-Tuesday-Blitz-July-09-2024"]
[Site "Chess.com"]
[Date "2024.07.09"]
[Round "7"]
[White "Adar_07"]
[Black "Schack-Hugo"]
[Result "1-0"]
[WhiteElo "2762"]
[BlackElo "2553"]
[TimeControl "180+1"]
[EndTime "9:20:39 PDT"]
[Termination "Adar_07 won by resignation"]

1. e4 {[%clk 0:03:00.9]} 1... e5 {[%clk 0:03:00.2]} 2. Nf3 {[%clk 0:02:59.9]}
2... Nc6 {[%clk 0:03:00.1]} 3. Bb5 {[%clk 0:02:59.8]} 3... a6 {[%clk 0:03:00]}
4. Ba4 {[%clk 0:02:59]} 4... Nf6 {[%clk 0:03:00]} 5. O-O {[%clk 0:02:59.2]} 5...
Be7 {[%clk 0:02:59.3]} 6. Re1 {[%clk 0:02:58.6]} 6... b5 {[%clk 0:02:59.7]} 7.
Bb3 {[%clk 0:02:58.6]} 7... d6 {[%clk 0:03:00.6]} 8. c3 {[%clk 0:02:58.5]} 8...
O-O {[%clk 0:02:59.7]} 9. h3 {[%clk 0:02:58.7]} 9... Na5 {[%clk 0:03:00.1]} 10.
Bc2 {[%clk 0:02:58.7]} 10... c5 {[%clk 0:03:00.6]} 11. d4 {[%clk 0:02:59]} 11...
Nd7 {[%clk 0:03:00.4]} 12. a4 {[%clk 0:02:49.4]} 12... b4 {[%clk 0:03:00]} 13.
cxb4 {[%clk 0:02:36]} 13... cxb4 {[%clk 0:02:59.6]} 14. b3 {[%clk 0:02:36.1]}
14... exd4 {[%clk 0:02:57.1]} 15. Nxd4 {[%clk 0:02:36.1]} 15... Bf6 {[%clk
0:02:56]} 16. Bb2 {[%clk 0:02:34.6]} 16... Qb6 {[%clk 0:02:55.2]} 17. Ra2 {[%clk
0:02:28.9]} 17... Nc5 {[%clk 0:02:53.1]} 18. Nd2 {[%clk 0:02:23.3]} 18... Be6
{[%clk 0:02:34.5]} 19. Nxe6 {[%clk 0:02:18.6]} 19... fxe6 {[%clk 0:02:35.4]} 20.
Bxf6 {[%clk 0:02:18.2]} 20... Rxf6 {[%clk 0:02:36.3]} 21. e5 {[%clk 0:02:18.6]}
21... Rxf2 {[%clk 0:02:29.8]} 22. Qh5 {[%clk 0:01:54.8]} 22... Ne4 {[%clk
0:02:21.7]} 23. Bxe4 {[%clk 0:01:29.5]} 23... Rf5+ {[%clk 0:02:20.9]} 24. Kh1
{[%clk 0:01:30.1]} 24... Rxh5 {[%clk 0:02:20.9]} 25. Bxa8 {[%clk 0:01:30.8]}
25... Rxe5 {[%clk 0:02:17.7]} 26. Rxe5 {[%clk 0:01:26.4]} 26... dxe5 {[%clk
0:02:18.6]} 27. Rc2 {[%clk 0:01:25.5]} 27... Qd4 {[%clk 0:02:06.2]} 28. Bf3
{[%clk 0:01:16.2]} 28... g6 {[%clk 0:01:54.7]} 29. Rc8+ {[%clk 0:01:04]} 29...
Kg7 {[%clk 0:01:51]} 30. Ne4 {[%clk 0:01:04.5]} 30... Nxb3 {[%clk 0:01:43.7]}
31. Ng5 {[%clk 0:01:02.7]} 31... Qd7 {[%clk 0:01:34.7]} 32. Rc7 {[%clk
0:00:59.5]} 32... Qxc7 {[%clk 0:01:32.3]} 33. Nxe6+ {[%clk 0:00:59.5]} 33... Kf6
{[%clk 0:01:31.2]} 34. Nxc7 {[%clk 0:01:00.4]} 34... e4 {[%clk 0:01:23.8]} 35.
Bd1 {[%clk 0:00:53.3]} 35... Nc5 {[%clk 0:01:20.9]} 36. Nd5+ {[%clk 0:00:53.1]}
36... Ke5 {[%clk 0:01:20.3]} 37. Nxb4 {[%clk 0:00:54]} 37... Kd4 {[%clk
0:01:17]} 38. Kg1 {[%clk 0:00:53.3]} 38... Kc3 {[%clk 0:01:14.2]} 39. Nd5+
{[%clk 0:00:50.1]} 39... Kd2 {[%clk 0:01:09.7]} 40. Bg4 {[%clk 0:00:49.7]} 40...
e3 {[%clk 0:01:08.1]} 41. Kf1 {[%clk 0:00:42]} 41... Nxa4 {[%clk 0:00:53.6]} 42.
Nf6 {[%clk 0:00:22.5]} 42... Nc3 {[%clk 0:00:46.4]} 43. Nxh7 {[%clk 0:00:23]}
43... a5 {[%clk 0:00:45.1]} 44. Ng5 {[%clk 0:00:20.3]} 44... a4 {[%clk
0:00:44.6]} 45. Nf3+ {[%clk 0:00:20.7]} 45... Kd3 {[%clk 0:00:20.8]} 46. Ke1
{[%clk 0:00:18.5]} 46... a3 {[%clk 0:00:19.8]} 47. Be6 {[%clk 0:00:19]} 47... a2
{[%clk 0:00:15.6]} 48. Bxa2 {[%clk 0:00:19.4]} 48... Nxa2 {[%clk 0:00:16.5]} 49.
Ne5+ {[%clk 0:00:20]} 49... Ke4 {[%clk 0:00:16.1]} 50. Nxg6 {[%clk 0:00:20.5]}
50... Nc3 {[%clk 0:00:16.1]} 51. h4 {[%clk 0:00:19.6]} 51... Kf5 {[%clk
0:00:16.4]} 52. h5 {[%clk 0:00:17]} 52... Kg5 {[%clk 0:00:14.4]} 53. Nf4 {[%clk
0:00:14.6]} 53... Ne4 {[%clk 0:00:10.2]} 54. h6 {[%clk 0:00:11.5]} 54... Kxh6
{[%clk 0:00:08.7]} 55. Ke2 {[%clk 0:00:11.8]} 55... Kg5 {[%clk 0:00:06.6]} 56.
Kxe3 {[%clk 0:00:12.7]} 56... Kg4 {[%clk 0:00:07]} 57. Kxe4 {[%clk 0:00:12.4]}
57... Kg3 {[%clk 0:00:06.8]} 58. Ke3 {[%clk 0:00:12.7]} 1-0

[Event "Early-Titled-Tuesday-Blitz-July-09-2024"]
[Site "Chess.com"]
[Date "2024.07.09"]
[Round "7"]
[White "Kildepiotr"]
[Black "Mysterio47"]
[Result "1-0"]
[WhiteElo "2707"]
[BlackElo "2746"]
[TimeControl "180+1"]
[EndTime "9:20:39 PDT"]
[Termination "Kildepiotr won by resignation"]

1. Nf3 {[%clk 0:03:00.9]} 1... d5 {[%clk 0:02:58.4]} 2. g3 {[%clk 0:03:01.3]}
2... Nc6 {[%clk 0:02:58.5]} 3. Bg2 {[%clk 0:03:01.9]} 3... e5 {[%clk 0:02:58.4]}
4. d3 {[%clk 0:03:02.4]} 4... Nf6 {[%clk 0:02:58.1]} 5. O-O {[%clk 0:03:02.6]}
5... Be7 {[%clk 0:02:55.4]} 6. Nbd2 {[%clk 0:03:02.2]} 6... O-O {[%clk 0:02:55]}
7. e4 {[%clk 0:03:02.7]} 7... dxe4 {[%clk 0:02:55.5]} 8. dxe4 {[%clk 0:03:03.6]}
8... a5 {[%clk 0:02:55.1]} 9. c3 {[%clk 0:03:03.6]} 9... Bc5 {[%clk 0:02:55.2]}
10. Qc2 {[%clk 0:02:58.7]} 10... h6 {[%clk 0:02:55.3]} 11. h3 {[%clk 0:02:57.7]}
11... b6 {[%clk 0:02:51.6]} 12. Nb3 {[%clk 0:02:56.9]} 12... Bd6 {[%clk
0:02:51.4]} 13. a4 {[%clk 0:02:55.7]} 13... Nd7 {[%clk 0:02:49.3]} 14. Be3
{[%clk 0:02:54.7]} 14... Qe7 {[%clk 0:02:48.9]} 15. Nh4 {[%clk 0:02:52.2]} 15...
Qe6 {[%clk 0:02:29.4]} 16. Nf5 {[%clk 0:02:51.5]} 16... Re8 {[%clk 0:02:23.1]}
17. Nxd6 {[%clk 0:02:49.6]} 17... Qxd6 {[%clk 0:02:22.5]} 18. Rfd1 {[%clk
0:02:46.8]} 18... Qe7 {[%clk 0:02:22.7]} 19. Nd2 {[%clk 0:02:44.1]} 19... Ba6
{[%clk 0:02:22]} 20. Bf1 {[%clk 0:02:44.1]} 20... Bxf1 {[%clk 0:02:21.5]} 21.
Kxf1 {[%clk 0:02:44.2]} 21... Nc5 {[%clk 0:02:20.1]} 22. Kg2 {[%clk 0:02:41.3]}
22... Rad8 {[%clk 0:02:16.5]} 23. Nc4 {[%clk 0:02:41.2]} 23... Qe6 {[%clk
0:02:16.2]} 24. b3 {[%clk 0:02:37.5]} 24... Nb7 {[%clk 0:02:16.1]} 25. Rxd8
{[%clk 0:02:33.9]} 25... Rxd8 {[%clk 0:02:15.9]} 26. Rd1 {[%clk 0:02:34.8]}
26... Rxd1 {[%clk 0:02:07.1]} 27. Qxd1 {[%clk 0:02:35.7]} 27... Ne7 {[%clk
0:02:07.2]} 28. Qd3 {[%clk 0:02:26.4]} 28... f6 {[%clk 0:02:04]} 29. b4 {[%clk
0:02:22.6]} 29... Qc6 {[%clk 0:01:57]} 30. b5 {[%clk 0:02:13.7]} 30... Qe6
{[%clk 0:01:55.6]} 31. Nd2 {[%clk 0:02:11.8]} 31... Nc8 {[%clk 0:01:46]} 32. Qc4
{[%clk 0:02:01.5]} 32... Qxc4 {[%clk 0:01:43.2]} 33. Nxc4 {[%clk 0:02:02.4]}
33... Kf7 {[%clk 0:01:39.1]} 34. f4 {[%clk 0:02:00.4]} 34... Ncd6 {[%clk
0:01:30.9]} 35. Nd2 {[%clk 0:01:59.1]} 35... exf4 {[%clk 0:01:16.9]} 36. gxf4
{[%clk 0:02:00]} 36... f5 {[%clk 0:01:15.1]} 37. e5 {[%clk 0:01:58.4]} 37... Nc8
{[%clk 0:01:15.3]} 38. h4 {[%clk 0:01:55]} 38... Ne7 {[%clk 0:01:13.6]} 39. c4
{[%clk 0:01:54.9]} 39... Ke6 {[%clk 0:01:12.7]} 40. Nb3 {[%clk 0:01:52.5]} 40...
g6 {[%clk 0:01:02]} 41. Kf3 {[%clk 0:01:48.5]} 41... Nd8 {[%clk 0:00:51.9]} 42.
c5 {[%clk 0:01:48.1]} 42... Nd5 {[%clk 0:00:51.1]} 43. Nd4+ {[%clk 0:01:44]}
43... Kd7 {[%clk 0:00:39.9]} 44. c6+ {[%clk 0:01:41.3]} 44... Ke7 {[%clk
0:00:40.3]} 45. h5 {[%clk 0:01:41.3]} 45... Kf7 {[%clk 0:00:33.3]} 46. hxg6+
{[%clk 0:01:37.1]} 46... Kxg6 {[%clk 0:00:34.2]} 47. Bd2 {[%clk 0:01:36.1]}
47... Ne7 {[%clk 0:00:30.4]} 48. Bc1 {[%clk 0:01:32.9]} 48... Nd5 {[%clk
0:00:25.1]} 49. Bd2 {[%clk 0:01:33.1]} 49... Ne7 {[%clk 0:00:24.6]} 50. Be1
{[%clk 0:01:33.5]} 50... Nd5 {[%clk 0:00:15.4]} 51. Bh4 {[%clk 0:01:32.2]} 51...
Nf7 {[%clk 0:00:16]} 52. Ne6 {[%clk 0:01:24.3]} 52... Kh5 {[%clk 0:00:09.1]} 53.
Bf2 {[%clk 0:01:15.5]} 53... Kg6 {[%clk 0:00:08.2]} 54. Bh4 {[%clk 0:01:04.5]}
54... Kh5 {[%clk 0:00:07.8]} 55. Kg3 {[%clk 0:00:57.9]} 55... Kg6 {[%clk
0:00:05.8]} 56. Kh3 {[%clk 0:00:37.8]} 56... Kh5 {[%clk 0:00:03]} 57. Bf2 {[%clk
0:00:37.3]} 57... Kg6 {[%clk 0:00:03.5]} 58. Kg3 {[%clk 0:00:35.7]} 58... Kh5
{[%clk 0:00:02.2]} 59. Nxc7 {[%clk 0:00:34.6]} 59... Nxc7 {[%clk 0:00:02.4]} 60.
Bxb6 {[%clk 0:00:35.3]} 60... Nd5 {[%clk 0:00:03]} 61. Bxa5 {[%clk 0:00:34.6]}
61... Kg6 {[%clk 0:00:02.8]} 62. c7 {[%clk 0:00:34]} 62... Ne7 {[%clk
0:00:03.1]} 63. b6 {[%clk 0:00:33.8]} 1-0

[Event "Early-Titled-Tuesday-Blitz-July-09-2024"]
[Site "Chess.com"]
[Date "2024.07.09"]
[Round "7"]
[White "Dr_Pepper18"]
[Black "gpsji27"]
[Result "0-1"]
[WhiteElo "2427"]
[BlackElo "2354"]
[TimeControl "180+1"]
[EndTime "9:20:39 PDT"]
[Termination "gpsji27 won on time"]

1. d4 {[%clk 0:03:00.9]} 1... d5 {[%clk 0:02:59]} 2. c4 {[%clk 0:03:00.8]} 2...
e6 {[%clk 0:02:59.6]} 3. Nf3 {[%clk 0:03:00]} 3... Nf6 {[%clk 0:02:59.2]} 4. g3
{[%clk 0:03:00.2]} 4... Be7 {[%clk 0:02:52.4]} 5. Bg2 {[%clk 0:02:59.9]} 5...
O-O {[%clk 0:02:47.7]} 6. O-O {[%clk 0:03:00.2]} 6... dxc4 {[%clk 0:02:43.2]} 7.
Qa4 {[%clk 0:02:55.6]} 7... a6 {[%clk 0:02:42.7]} 8. Qxc4 {[%clk 0:02:52.1]}
8... b5 {[%clk 0:02:41.7]} 9. Qc2 {[%clk 0:02:51.4]} 9... Bb7 {[%clk 0:02:40]}
10. a4 {[%clk 0:02:49.5]} 10... Nbd7 {[%clk 0:02:34.8]} 11. Rd1 {[%clk
0:02:39.5]} 11... b4 {[%clk 0:02:30.2]} 12. Nbd2 {[%clk 0:02:36.8]} 12... c5
{[%clk 0:02:24]} 13. Nc4 {[%clk 0:02:30.8]} 13... Rc8 {[%clk 0:02:12.5]} 14. b3
{[%clk 0:02:28.5]} 14... Be4 {[%clk 0:01:54.3]} 15. Qb2 {[%clk 0:02:04.8]} 15...
Qc7 {[%clk 0:01:44.4]} 16. Bf4 {[%clk 0:02:01.9]} 16... Qb7 {[%clk 0:01:32.1]}
17. dxc5 {[%clk 0:01:38.5]} 17... Bxc5 {[%clk 0:01:26.4]} 18. Nd6 {[%clk
0:01:35.2]} 18... Bxd6 {[%clk 0:01:18.3]} 19. Bxd6 {[%clk 0:01:36.1]} 19... Rc2
{[%clk 0:01:14.2]} 20. Qd4 {[%clk 0:01:30.3]} 20... Rfc8 {[%clk 0:01:06.9]} 21.
Qxb4 {[%clk 0:01:10.7]} 21... Qxb4 {[%clk 0:01:01.9]} 22. Bxb4 {[%clk
0:01:11.6]} 22... Rxe2 {[%clk 0:01:01.6]} 23. Rd2 {[%clk 0:01:07.9]} 23... Rc2
{[%clk 0:00:53]} 24. Rxe2 {[%clk 0:01:00.2]} 24... Rxe2 {[%clk 0:00:49.7]} 25.
Nd4 {[%clk 0:01:00.3]} 25... Rb2 {[%clk 0:00:36.1]} 26. Bc3 {[%clk 0:00:58.9]}
26... Rb1+ {[%clk 0:00:34.8]} 27. Rxb1 {[%clk 0:00:59.3]} 27... Bxb1 {[%clk
0:00:35.7]} 28. Bf1 {[%clk 0:00:54.1]} 28... Ne4 {[%clk 0:00:30.7]} 29. Be1
{[%clk 0:00:49.7]} 29... Ndc5 {[%clk 0:00:24.4]} 30. b4 {[%clk 0:00:18.9]} 30...
Nxa4 {[%clk 0:00:22]} 31. Bxa6 {[%clk 0:00:17.4]} 31... Nec3 {[%clk 0:00:17.5]}
32. Nc6 {[%clk 0:00:10.9]} 32... Nd5 {[%clk 0:00:12.6]} 33. Bc4 {[%clk
0:00:10.5]} 33... Nab6 {[%clk 0:00:12.1]} 34. Bb3 {[%clk 0:00:05.6]} 34... Bd3
{[%clk 0:00:11.6]} 35. Bd2 {[%clk 0:00:04.3]} 35... h6 {[%clk 0:00:09.9]} 36. h4
{[%clk 0:00:03.8]} 36... Kh7 {[%clk 0:00:09.5]} 37. f3 {[%clk 0:00:04.3]} 37...
Kg8 {[%clk 0:00:08.3]} 38. Kf2 {[%clk 0:00:04.9]} 38... f6 {[%clk 0:00:06.8]}
39. Nd8 {[%clk 0:00:04.2]} 39... e5 {[%clk 0:00:01.9]} 40. Be3 {[%clk
0:00:03.8]} 40... Bc4 {[%clk 0:00:01.3]} 41. Bxc4 {[%clk 0:00:03.4]} 41... Nxc4
{[%clk 0:00:02.1]} 42. Bc5 {[%clk 0:00:02.4]} 42... Nc3 {[%clk 0:00:01]} 43. Ne6
{[%clk 0:00:02.3]} 43... Nb5 {[%clk 0:00:01.8]} 44. f4 {[%clk 0:00:01]} 44...
Nca3 {[%clk 0:00:02.5]} 45. fxe5 {[%clk 0:00:01]} 45... fxe5 {[%clk 0:00:03.4]}
46. Kf3 {[%clk 0:00:01.9]} 46... Kf7 {[%clk 0:00:04]} 47. Nc7 {[%clk 0:00:01.5]}
47... Nxc7 {[%clk 0:00:04]} 0-1